Cogmind - Beta 15 *** ADVENTURER MODE // 2025.05.21 @ 00:22:20 Player: Jack Result: Self-destructed Performance ------------- Evolutions (9) 4500 Regions Visited (17) 3400 Robots Destroyed (100) 500 Value Destroyed (2797) 2797 Prototype IDs (27) 540 Alien Tech Used (0) 0 Bonus (2012) 2012 TOTAL SCORE: 13749 Bonus ------- Triggered Max Security 1000 High Alert Combat Kills 12 Entered Garrisons 200 Used RIF Installer 500 Aligned with FarCom 300 Cogmind --------- Core Integrity 759/1600 Matter 300/300 Energy 99/100 System Corruption 2% Temperature Cool (0) Movement Core (50) Location -1/Access Parts ------- > --- POWER (1) -------- (None) > --- PROPULSION (6) --- (None) > --- UTILITY (16) ----- Advanced Hacking Suite > --- WEAPON (2) ------- (None) > --- INVENTORY (5) ---- Impulse Thruster Array Improved Particle Accelerator Cooled Phase Cannon Force Lance Peak State ------------ > --- POWER ------------ Light Antimatter Reactor > --- PROPULSION ------- Nuclear Pulse Array Field Propulsion Array > --- UTILITY ---------- Structural Scanner Hacking Suite Hacking Suite Hacking Suite Hacking Suite Hacking Suite Improved Hacking Suite Improved Hacking Suite Improved Hacking Suite Improved Hacking Suite Improved Hacking Suite Advanced Hacking Suite Advanced Hacking Suite Advanced Hacking Suite > --- WEAPON ----------- Long-range Missile Launcher Force Lance > --- INVENTORY -------- Improved Particle Accelerator Cooled Phase Cannon Katana Lance [Rating: 106] Favorites ----------- Power Light Antimatter Reactor Engine Backup Power III Reactor Light Antimatter Reactor Propulsion Nuclear Pulse Array Flight Unit Nuclear Pulse Array Utility Hacking Suite Device Structural Scanner Processor Terrain Scan Processor Hackware Hacking Suite Weapon Long-range Missile Launcher Energy Gun Small Laser Ballistic Gun Assault Rifle Launcher Long-range Missile Launcher Impact Weapon Power Maul Slashing Weapon Scythe Piercing Weapon Lance Build | -11 -10 -10 -10 -9 -8 -7 -7 -7 -7 -7 -6 -5 -4 -3 -3 -2 -1 ------- Run | Yrd Mat Min Exi Min Mat Fac Was Fac Gar Fac Fac Fac Fac Res Qua Res Acc Slots Evolved 18 | . . . . . 4 2 . . . . 2 2 2 2 . 2 2 Power . | . . . . . . . . . . . . . . . . . . Propulsion 4 | . . . . . . . . . . . . . . 2 . 2 . Utility 14 | . . . . . 4 2 . . . . 2 2 2 . . . 2 Weapon . | . . . . . . . . . . . . . . . . . . Parts Attached 64 | 2 . 3 . . 2 15 1 3 1 9 6 7 6 4 . 2 3 Power 1 | . . . . . . . . . . . . . . 1 . . . Engine . | . . . . . . . . . . . . . . . . . . Core . | . . . . . . . . . . . . . . . . . . Reactor 1 | . . . . . . . . . . . . . . 1 . . . Propulsion 14 | . . 2 . . 1 2 . . 1 2 1 1 1 2 . 1 . Treads . | . . . . . . . . . . . . . . . . . . Leg . | . . . . . . . . . . . . . . . . . . Wheel . | . . . . . . . . . . . . . . . . . . Hover . | . . . . . . . . . . . . . . . . . . Flight 14 | . . 2 . . 1 2 . . 1 2 1 1 1 2 . 1 . Utility 35 | . . . . . 1 8 . 3 . 4 5 5 5 . . 1 3 Device 3 | . . . . . . 1 . . . . . . . . . . 2 Storage . | . . . . . . . . . . . . . . . . . . Processor 1 | . . . . . . . . . . . . . . . . . 1 Hackware 31 | . . . . . 1 7 . 3 . 4 5 5 5 . . 1 . Protection . | . . . . . . . . . . . . . . . . . . Artifact . | . . . . . . . . . . . . . . . . . . Weapon 14 | 2 . 1 . . . 5 1 . . 3 . 1 . 1 . . . Energy Gun 2 | . . 1 . . . 1 . . . . . . . . . . . Energy Cannon . | . . . . . . . . . . . . . . . . . . Ballistic Gun 3 | 2 . . . . . 1 . . . . . . . . . . . Ballistic Cannon . | . . . . . . . . . . . . . . . . . . Launcher 4 | . . . . . . 1 1 . . 2 . . . . . . . Special Weapon . | . . . . . . . . . . . . . . . . . . Impact Weapon 1 | . . . . . . 1 . . . . . . . . . . . Slashing Weapon 2 | . . . . . . 1 . . . 1 . . . . . . . Piercing Weapon 2 | . . . . . . . . . . . . 1 . 1 . . . Special Melee Weapon . | . . . . . . . . . . . . . . . . . . Unidentified Prototypes . | . . . . . . . . . . . . . . . . . . Parts Lost 39 | . . 1 . 1 4 3 . . 2 . 3 2 1 8 1 1 12 Power 1 | . . . . . . . . . . . . . . 1 . . . Propulsion 6 | . . . . 1 2 . . . 1 . . . . 1 . . 1 Utility 26 | . . . . . . 2 . . 1 . 3 2 1 5 1 . 11 Weapon 6 | . . 1 . . 2 1 . . . . . . . 1 . 1 . Highest Loss Streak 10 | . . 1 . 1 4 2 . . 1 . 1 2 1 8 1 1 10 To Critical Strikes . | . . . . . . . . . . . . . . . . . . Average Backups 3 | 1 2 1 1 1 2 2 4 4 4 4 3 3 3 3 4 4 3 Power . | . . . . . . . . . . . . . . . . . . Propulsion 1 | . . . . . . . 2 2 2 1 1 1 1 . . . 1 Utility . | . . 1 1 1 1 . . . . . . . . 1 1 1 1 Weapon 1 | 1 2 . . . 1 1 2 2 2 1 1 1 1 2 3 2 1 Tool/Special . | . . . . . . . . . . . . . . . . . . Unused Backups 7 | . . . 1 . . . . . . 1 . 2 1 . . . 2 Power . | . . . . . . . . . . . . . . . . . . Propulsion 3 | . . . . . . . . . . 1 . 2 . . . . . Utility 2 | . . . . . . . . . . . . . 1 . . . 1 Weapon 1 | . . . . . . . . . . . . . . . . . 1 Tool/Special 1 | . . . 1 . . . . . . . . . . . . . . Average Slot Usage (%) 71 | . 14 39 57 48 25 38 66 82 91 85 84 84 88 87 56 41 44 Flight 7 | . . 16 28 20 6 7 15 15 15 14 5 5 5 8 4 . 3 Device 4 | . . . . . . 4 7 7 7 6 6 5 4 3 . . 4 Hackware 46 | . . . . . 4 19 30 43 52 51 58 60 67 59 41 37 29 Ballistic Gun 1 | . 14 13 14 14 7 1 . . . . . . . . . . . Launcher 3 | . . . . . . . 5 7 7 3 5 4 5 3 . . . Slashing Weapon 2 | . . . . . . 1 7 7 7 7 6 1 . . . 2 . Piercing Weapon 1 | . . . . . . . . . . . . 3 5 4 4 . 3 Peak Build Rating 106 | 2 1 4 4 4 6 23 26 35 35 37 57 73 89 106 71 61 70 Average Rating 50 | . 1 2 4 3 4 15 25 31 34 32 50 66 84 103 70 49 61 On Entrance 32 | . 1 1 4 4 3 3 23 26 35 32 34 57 71 87 71 66 61 Naked Turns 8 | . . 8 . . . . . . . . . . . . . . . Heaviest Build 27 | 2 2 3 3 3 3 6 9 9 9 9 11 12 12 27 8 2 8 Greatest Support 29 | 3 3 8 8 8 5 10 10 10 10 10 13 13 15 29 16 16 16 Greatest Overweight (x) 3 | . . . . . . 1 . . . . . 3 . . . . . Average Overweight (x) . | . . . . . . . . . . . . . . . . . . Largest Inventory Capacity 5 | 5 5 5 5 5 5 5 5 5 5 5 5 5 5 5 5 5 5 Average Capacity 5 | 5 5 5 5 5 5 5 5 5 5 5 5 5 5 5 5 5 5 Most Carried 5 | 2 3 3 2 2 2 5 5 4 5 5 5 5 5 5 4 5 5 Average Carried 3 | 1 2 1 1 1 2 2 4 4 4 4 3 4 4 3 4 4 4 Final Capacity 5 | 5 5 5 5 5 5 5 5 5 5 5 5 5 5 5 5 5 5 Final Carried 5 | 2 3 1 1 2 2 5 4 4 5 5 4 5 5 4 4 5 5 Class Distribution -------------------- 58% | Wizard-Mutant 15% | Wizard-Sprinter 8% | Hacker-Sprinter 7% | Hacker-Mutant 6% | Mutant 4% | Wizard-Scout Dominant Class ---------------- Mutant | -10/Materials Mutant | -10/Mines Mutant | -10/Exiles Mutant | -9/Mines Hacker-Mutant | -8/Materials Hacker-Sprinter | -7/Factory Hacker-Sprinter | -7/Waste Wizard-Sprinter | -7/Factory Wizard-Sprinter | -7/Garrison Wizard-Sprinter | -7/Factory Wizard-Mutant | -6/Factory Wizard-Mutant | -5/Factory Wizard-Mutant | -4/Factory Wizard-Mutant | -3/Research Wizard-Mutant | -3/Quarantine Wizard-Mutant | -2/Research Wizard-Scout | -1/Access Resources | -11 -10 -10 -10 -9 -8 -7 -7 -7 -7 -7 -6 -5 -4 -3 -3 -2 -1 ----------- Run | Yrd Mat Min Exi Min Mat Fac Was Fac Gar Fac Fac Fac Fac Res Qua Res Acc Matter Collected 1891 | 223 . 52 . . . 67 . 40 72 364 505 163 171 166 . . 68 Remotely . | . . . . . . . . . . . . . . . . . . Salvage Created 2302 | 73 . 71 . . . 72 . 40 80 227 885 298 301 228 . . 27 Parts 168 | 5 . 8 . . . 8 . 7 10 20 48 28 18 10 . . 6 Haulers Intercepted 3 | . . . . . . . . . . . 2 1 . . . . . Recyclers Shooed 4 | . . . . . . . . . . . 3 . . 1 . . . Parts Field Recycled . | . . . . . . . . . . . . . . . . . . Retrieved Matter . | . . . . . . . . . . . . . . . . . . Parts Self-Destructed . | . . . . . . . . . . . . . . . . . . Prevented . | . . . . . . . . . . . . . . . . . . Kills | -11 -10 -10 -10 -9 -8 -7 -7 -7 -7 -7 -6 -5 -4 -3 -3 -2 -1 ------- Run | Yrd Mat Min Exi Min Mat Fac Was Fac Gar Fac Fac Fac Fac Res Qua Res Acc Combat Hostiles Destroyed 50 | . . 3 . . . 4 . . 7 . 16 5 9 6 . . . Guns 4 | . . 3 . . . 1 . . . . . . . . . . . AOE 46 | . . . . . . 3 . . 7 . 16 5 9 6 . . . Classes Destroyed 13 | 1 . 2 . . . 2 . 1 . 1 6 . . . . . . Worker 15 | . . . . . . 1 . . . 1 6 2 4 1 . . . Builder 9 | . . . . . . 1 . . . 2 2 1 1 . . . 2 Tunneler 3 | . . 1 . . . . . . . . . 1 1 . . . . Hauler 3 | . . . . . . . . . . . 2 1 . . . . . Recycler 5 | 1 . . . . . . . . . 1 2 . . 1 . . . Mechanic 1 | . . . . . . . . . . 1 . . . . . . . Operator 11 | . . . . . . . . 2 . 3 2 4 . . . . . Watcher 3 | . . . . . . . . . . . 2 . 1 . . . . Swarmer 34 | . . 3 . . . 4 . . 7 . 5 4 5 6 . . . Grunt 12 | . . . . . . . . . . . 7 1 4 . . . . Brawler 1 | . . . . . . . . . . . 1 . . . . . . Duelist 1 | . . . . . . . . . . . 1 . . . . . . Programmer 2 | . . . . . . . . . . . 2 . . . . . . Best Kill Streak 11 | 1 . 4 . . . 3 . 1 4 3 11 5 7 6 . . 1 Combat Bots Only 5 | . . 3 . . . 3 . . 4 . 4 4 5 5 . . . Max Kills in Single Turn 4 | 1 . 2 . . . 2 . 1 3 1 3 3 4 2 . . 1 Gunslinging 1 | . . 1 . . . . . . . . . . . . . . . Exploded 3 | . . . . . . 2 . . 3 . 2 2 2 2 . . . Melee . | . . . . . . . . . . . . . . . . . . Uniques/NPCs Destroyed . | . . . . . . . . . . . . . . . . . . Combat | -11 -10 -10 -10 -9 -8 -7 -7 -7 -7 -7 -6 -5 -4 -3 -3 -2 -1 -------- Run | Yrd Mat Min Exi Min Mat Fac Was Fac Gar Fac Fac Fac Fac Res Qua Res Acc Hostile Shots Fired 594 | . 12 35 . 10 51 88 . . 35 64 37 2 18 70 6 44 122 Missed 280 | . 6 16 . 6 16 42 . . 21 35 16 1 9 36 . 22 54 Hits 314 | . 6 19 . 4 35 46 . . 14 29 21 1 9 34 6 22 68 Melee 1 | . . . . 1 . . . . . . . . . . . . . Projectile 313 | . 6 19 . 3 35 46 . . 14 29 21 1 9 34 6 22 68 Critical Strikes 11 | . . . . . 1 2 . . . . 2 . . 1 . 2 3 Damage Taken 4725 | . 127 134 . 54 440 484 . . 180 220 342 69 174 672 139 454 1236 Core 2589 | . 47 53 . 17 289 320 . . 75 125 107 . 78 207 44 386 841 Absorbed by Shields 42 | . . . . . . . . . 9 . . . . . . . 33 Ignored by Resistances 1276 | . 25 42 . 16 121 140 . . 54 68 73 3 49 181 36 122 346 Regen/Repaired (Parts) 229 | . . . . . . 8 . . . 32 161 15 13 . . . . Core Remaining (%) 73 | 100 . . . 53 47 . . . . 25 87 100 93 . 80 73 . Volleys Fired 76 | 1 . 4 . . . 10 6 . 8 . 25 5 11 6 . . . Largest 2 | 1 . 2 . . . 2 1 . 1 . 1 1 1 1 . . . Hottest 88 | 20 . 60 . . . 88 36 . 36 . 43 43 43 43 . . . Shots Fired 87 | 1 . 8 . . . 17 6 . 8 . 25 5 11 6 . . . Gun 23 | 1 . 8 . . . 14 . . . . . . . . . . . Cannon . | . . . . . . . . . . . . . . . . . . Launcher 64 | . . . . . . 3 6 . 8 . 25 5 11 6 . . . Special . | . . . . . . . . . . . . . . . . . . Kinetic 12 | 1 . 4 . . . 7 . . . . . . . . . . . Thermal 11 | . . 4 . . . 7 . . . . . . . . . . . Explosive 64 | . . . . . . 3 6 . 8 . 25 5 11 6 . . . Electromagnetic . | . . . . . . . . . . . . . . . . . . Robot Hit Streak 8 | 1 . 4 . . . 5 7 . 8 . 4 3 5 2 . . . Robot Miss Streak 3 | . . 1 . . . 2 . . 1 . 2 . 1 3 . . . Penetration Max . | . . . . . . . . . . . . . . . . . . Secondary Targets 1 | . . 1 . . . . . . . . . . . . . . . Max Gunslinging Chain 1 | . . 1 . . . . . . . . . . . . . . . Shots Hit Robots 103 | 1 . 6 . . . 10 4 2 4 8 29 15 13 6 . 1 4 Core Hits 147 | 1 . 5 . . . 8 . 1 10 4 51 18 29 17 1 . 2 Critical Kills . | . . . . . . . . . . . . . . . . . . Critical Parts Destroyed . | . . . . . . . . . . . . . . . . . . Critical Strikes 6 | . . . . . . . . . . . 2 2 1 . . . 1 Sever 2 | . . . . . . . . . . . 2 . . . . . . Impale 4 | . . . . . . . . . . . . 2 1 . . . 1 Melee Attacks 355 | . . . . . . 31 . 10 22 42 65 71 58 14 . 12 30 Impact 19 | . . . . . . 19 . . . . . . . . . . . Slashing 179 | . . . . . . 12 . 10 22 42 65 16 . . . 12 . Piercing 157 | . . . . . . . . . . . . 55 58 14 . . 30 Sneak Attacks 22 | . . . . . . 1 . 1 . 8 4 3 1 2 . . 2 Combat Hostiles . | . . . . . . . . . . . . . . . . . . Follow-up Attacks . | . . . . . . . . . . . . . . . . . . Damage Inflicted 12012 | 15 46 80 . . 9 544 554 123 614 585 3807 1621 2599 1098 8 33 276 Guns 200 | 15 . 67 . . . 118 . . . . . . . . . . . Cannons . | . . . . . . . . . . . . . . . . . . Explosions 8370 | . . . . . . 334 554 . 551 . 2954 939 2196 842 . . . Melee 3334 | . . . . . . 67 . 123 63 585 853 682 403 256 . 33 269 Ramming 108 | . 46 13 . . 9 25 . . . . . . . . 8 . 7 Kinetic 109 | 15 . 35 . . . 59 . . . . . . . . . . . Thermal 492 | . . 32 . . . 59 . . . . . 401 . . . . . Explosive 7969 | . . . . . . 334 554 . 551 . 2954 538 2196 842 . . . Electromagnetic . | . . . . . . . . . . . . . . . . . . Impact 67 | . . . . . . 67 . . . . . . . . . . . Slashing 1777 | . . . . . . . . 123 63 585 853 120 . . . 33 . Piercing 1490 | . . . . . . . . . . . . 562 403 256 . . 269 Highest Corruption 4 | . . . . . . . . . . . . 3 . 2 2 4 2 Average Corruption 2 | . . . . . . . . . . . . 3 . 1 2 3 1 Corruption Purged . | . . . . . . . . . . . . . . . . . . Corruption Blocked . | . . . . . . . . . . . . . . . . . . Effects 8 | . . . . . . . . . . . . 8 . . . . . Message Errors 3 | . . . . . . . . . . . . 3 . . . . . Matter Fused 3 | . . . . . . . . . . . . 3 . . . . . Heat Flow Errors 1 | . . . . . . . . . . . . 1 . . . . . Data Loss (major) 1 | . . . . . . . . . . . . 1 . . . . . Overload Shots . | . . . . . . . . . . . . . . . . . . Overflow Damage 884 | . . . . . . . . 31 3 121 93 82 208 105 . . 241 Projectiles . | . . . . . . . . . . . . . . . . . . Explosions 223 | . . . . . . . . . . . 74 18 99 32 . . . Melee 661 | . . . . . . . . 31 3 121 19 64 109 73 . . 241 Knockbacks . | . . . . . . . . . . . . . . . . . . Impact . | . . . . . . . . . . . . . . . . . . Kinetic . | . . . . . . . . . . . . . . . . . . Secondary . | . . . . . . . . . . . . . . . . . . Self-Inflicted Damage 173 | . 21 6 . . 4 29 . . 37 . 33 . . 36 4 . 3 Shots 5 | . . . . . . 1 . . 2 . 1 . . 1 . . . Rammed 24 | . 8 2 . . 2 7 . . . . . . . . 2 . 3 Targets Rammed 24 | . 8 2 . . 2 7 . . . . . . . . 2 . 3 Kicked . | . . . . . . . . . . . . . . . . . . Crushed . | . . . . . . . . . . . . . . . . . . Highest Temperature 219 | . . 15 . . 5 40 . . . . . 219 . 9 . . . Average Temperature 36 | . . 7 . . 5 16 . . . . . 112 . 9 . . . Received Heat Transfer 881 | . 48 55 . 18 261 183 . . 12 69 18 . 9 91 27 72 18 Siege Activations . | . . . . . . . . . . . . . . . . . . Martial Activations . | . . . . . . . . . . . . . . . . . . Shielding Activations . | . . . . . . . . . . . . . . . . . . Robots Disrupted . | . . . . . . . . . . . . . . . . . . Combat Hostiles . | . . . . . . . . . . . . . . . . . . Robots Corrupted . | . . . . . . . . . . . . . . . . . . Combat Hostiles . | . . . . . . . . . . . . . . . . . . Parts Fried . | . . . . . . . . . . . . . . . . . . Impact Corruptions . | . . . . . . . . . . . . . . . . . . Robots Melted . | . . . . . . . . . . . . . . . . . . Combat Hostiles . | . . . . . . . . . . . . . . . . . . Parts Melted 1 | . . . . . . 1 . . . . . . . . . . . Heat Transferred 473 | . . 75 . . . 148 . . . . . 250 . . . . . Parts Sabotaged . | . . . . . . . . . . . . . . . . . . Parts Stolen . | . . . . . . . . . . . . . . . . . . Parts Stripped . | . . . . . . . . . . . . . . . . . . Power Chain Reactions . | . . . . . . . . . . . . . . . . . . Alert | -11 -10 -10 -10 -9 -8 -7 -7 -7 -7 -7 -6 -5 -4 -3 -3 -2 -1 ------- Run | Yrd Mat Min Exi Min Mat Fac Was Fac Gar Fac Fac Fac Fac Res Qua Res Acc Maximum Alert Level 5 | . . . . . . 1 . . 1 . 2 1 2 1 5 4 2 Low Security (%) 58 | 100 100 100 . 100 100 85 100 100 79 100 40 33 71 14 1 . . Level 1 26 | . . . . . . 14 . . 20 . 34 66 16 85 . . . Level 2 11 | . . . . . . . . . . . 25 . 12 . . . 100 Level 3 2 | . . . . . . . . . . . . . . . . 83 . Level 4 . | . . . . . . . . . . . . . . . . 16 . Level 5 . | . . . . . . . . . . . . . . . . . . High Security . | . . . . . . . . . . . . . . . . . . Max Security . | . . . . . . . . . . . . . . . 98 . . Peak Influence 1600 | . 35 65 . 65 21 227 38 33 250 119 462 337 423 369 1600 1113 572 Initial 1100 | . . 11 . . 21 . 18 11 . 109 8 161 40 177 73 1100 563 Average 214 | . 7 32 . 10 8 132 23 9 88 58 248 234 117 271 1572 1084 527 Influence Increases 4533 | 5 60 150 . 75 7 633 30 29 260 318 1095 546 742 294 . 93 196 Destroy 0b10 Robot/C 1000 | . . 60 . . . 80 . . 140 . 320 100 180 120 . . . Destroy 0b10 Robot/NC 240 | 5 . 5 . . . 10 . 5 . 35 80 45 35 10 . . 10 Destroy Leader 132 | . . 10 . . . 10 . . 10 . 58 12 22 10 . . . Successful Hack 80 | . . . . . 7 6 . 16 . 39 . . . . . . 12 Disable Machine 405 | . . . . . . 18 . . 18 . 261 72 36 . . . . Anti-Garrison Action 200 | . . . . . . 200 . . . . . . . . . . . Destroy Structure 1186 | . . . . . . 39 30 8 77 34 226 272 274 124 . 33 69 Partial Spotted 195 | . . 15 . . . 45 . . . 30 30 15 30 . . . 30 Lose Combat Pursuer 1095 | . 60 60 . 75 . 225 . . 15 180 120 30 165 30 . 60 75 Influence Decreases 5932 | 5 25 120 65 10 72 570 75 47 20 538 731 833 449 533 88 931 820 Entered New Map 2220 | . . 24 65 . 44 . 45 7 . 131 12 223 57 213 78 811 510 Time Decay 3361 | 5 25 76 . 10 20 540 30 40 . 407 689 590 389 240 . 110 190 Lost Part 331 | . . . . . 8 30 . . 20 . 30 20 3 80 10 10 120 Lost Ally 20 | . . 20 . . . . . . . . . . . . . . . Squads Dispatched 57 | . 1 . . . 1 9 . 1 . 8 11 10 6 4 . 2 4 Investigation 32 | . 1 . . . 1 6 . 1 . 4 7 4 4 2 . 1 1 Extermination 16 | . . . . . . 3 . . . 2 3 2 2 1 . 1 2 Reinforcement 9 | . . . . . . . . . . 2 1 4 . 1 . . 1 Assault . | . . . . . . . . . . . . . . . . . . Garrison . | . . . . . . . . . . . . . . . . . . Intercept . | . . . . . . . . . . . . . . . . . . Searches Triggered . | . . . . . . . . . . . . . . . . . . Construction Impeded 1 | . . . . . . . . . . . . . . . . . 1 Haulers Reinforced . | . . . . . . . . . . . . . . . . . . Active Scanning Responses . | . . . . . . . . . . . . . . . . . . Cargo Convoy Interrupts . | . . . . . . . . . . . . . . . . . . Stealth | -11 -10 -10 -10 -9 -8 -7 -7 -7 -7 -7 -6 -5 -4 -3 -3 -2 -1 --------- Run | Yrd Mat Min Exi Min Mat Fac Was Fac Gar Fac Fac Fac Fac Res Qua Res Acc Distress Signals 9 | . 1 1 . . . . . . . 1 . 1 1 1 . 2 1 Communications Jammed . | . . . . . . . . . . . . . . . . . . Distress Signals . | . . . . . . . . . . . . . . . . . . Times Spotted 240 | . 7 17 . 5 12 19 5 2 33 21 27 15 23 18 4 17 15 Peak Tracking Total 25 | . 6 19 . 5 12 6 5 1 25 6 5 3 7 10 4 14 12 Tactical Retreats 43 | . 3 3 . 1 . 9 . . 1 5 4 2 9 2 . 1 3 Traps | -11 -10 -10 -10 -9 -8 -7 -7 -7 -7 -7 -6 -5 -4 -3 -3 -2 -1 ------- Run | Yrd Mat Min Exi Min Mat Fac Was Fac Gar Fac Fac Fac Fac Res Qua Res Acc Traps Triggered 14 | . 1 . . . 1 2 . . 3 2 1 . 2 1 . . 1 Indirectly . | . . . . . . . . . . . . . . . . . . Trap Hack Attempts . | . . . . . . . . . . . . . . . . . . Triggered . | . . . . . . . . . . . . . . . . . . Disarmed . | . . . . . . . . . . . . . . . . . . Reprogrammed . | . . . . . . . . . . . . . . . . . . Reused . | . . . . . . . . . . . . . . . . . . Traps Extracted . | . . . . . . . . . . . . . . . . . . Installed . | . . . . . . . . . . . . . . . . . . Triggered . | . . . . . . . . . . . . . . . . . . Machines | -11 -10 -10 -10 -9 -8 -7 -7 -7 -7 -7 -6 -5 -4 -3 -3 -2 -1 ---------- Run | Yrd Mat Min Exi Min Mat Fac Was Fac Gar Fac Fac Fac Fac Res Qua Res Acc Machines Disabled 45 | . . . . . . 2 . . 2 . 29 8 4 . . . . Max in Single Turn 5 | . . . . . . 1 . . 1 . 5 4 2 . . . . Garrison Access 13 | . . . . . . 1 . . . 2 3 4 3 . . . . Machines Repaired . | . . . . . . . . . . . . . . . . . . Machines Dismantled . | . . . . . . . . . . . . . . . . . . Machines Sabotaged . | . . . . . . . . . . . . . . . . . . Overloaded Fab Kills . | . . . . . . . . . . . . . . . . . . Hacking | -11 -10 -10 -10 -9 -8 -7 -7 -7 -7 -7 -6 -5 -4 -3 -3 -2 -1 --------- Run | Yrd Mat Min Exi Min Mat Fac Was Fac Gar Fac Fac Fac Fac Res Qua Res Acc Machines Accessed 87 | . 2 . 1 . 2 8 . 5 . 16 18 16 13 3 . 1 2 Terminals 39 | . 2 . . . 2 2 . 3 . 7 7 7 5 1 . 1 2 Fabricators 23 | . . . . . . 4 . 1 . 5 4 4 4 1 . . . Repair Stations 10 | . . . . . . 1 . . . 2 4 1 1 1 . . . Recycling Units . | . . . . . . . . . . . . . . . . . . Scanalyzers . | . . . . . . . . . . . . . . . . . . Garrison Access 14 | . . . . . . 1 . 1 . 2 3 4 3 . . . . Total Hacks 197 | . 5 . 1 . 3 24 . 10 . 46 40 32 23 5 . 3 5 Successful 167 | . 1 . 1 . 1 16 . 9 . 38 35 32 23 5 . 3 3 Failed 30 | . 4 . . . 2 8 . 1 . 8 5 . . . . . 2 Catastrophic 7 | . 2 . . . 1 2 . . . 2 . . . . . . . Database Lockouts . | . . . . . . . . . . . . . . . . . . Manual 110 | . 5 . 1 . 3 12 . 6 . 28 18 16 12 1 . 3 5 Terminals 80 | . 5 . . . 3 4 . 5 . 21 14 12 7 1 . 3 5 Fabricators 74 | . . . . . . 14 . 4 . 16 13 13 11 3 . . . Repair Stations 24 | . . . . . . 3 . . . 6 10 2 2 1 . . . Recycling Units . | . . . . . . . . . . . . . . . . . . Scanalyzers . | . . . . . . . . . . . . . . . . . . Garrison Access 18 | . . . . . . 3 . 1 . 3 3 5 3 . . . . Terminal Hacks 54 | . 1 . 1 . 1 2 . 3 . 14 8 10 7 1 . 3 3 Part Schematic 9 | . . . . . 1 . . . . 3 . 2 3 . . . . Open Door 1 | . . . . . . . . . . . . . . 1 . . . Level Access Points 5 | . . . . . . . . . . 1 1 1 1 . . 1 . Branch Access Points 3 | . 1 . . . . . . . . . . . . . . 1 1 Machine Index 6 | . . . . . . . . . . 1 1 1 1 . . 1 1 Terminal Index 1 | . . . . . . . . 1 . . . . . . . . . Fabricator Index 1 | . . . . . . . . 1 . . . . . . . . . Reinforcement Status 1 | . . . . . . . . . . . . 1 . . . . . Recall Investigation 11 | . . . . . . . . 1 . 4 3 2 1 . . . . Recall Extermination 7 | . . . . . . 1 . . . 2 2 . 1 . . . 1 Recall Reinforcements 5 | . . . . . . . . . . 1 1 3 . . . . . Registered Components 2 | . . . . . . 1 . . . 1 . . . . . . . Registered Prototypes 1 | . . . . . . . . . . 1 . . . . . . . Proto ID Catalog 1 | . . . 1 . . . . . . . . . . . . . . Fabricator Hacks 46 | . . . . . . 8 . 2 . 9 9 9 7 2 . . . Network Status 1 | . . . . . . 1 . . . . . . . . . . . Load Schematic 27 | . . . . . . 5 . 1 . 5 5 5 5 1 . . . Build 18 | . . . . . . 2 . 1 . 4 4 4 2 1 . . . Repair Station Hacks 23 | . . . . . . 2 . . . 6 10 2 2 1 . . . Scan Component 11 | . . . . . . 1 . . . 3 5 1 1 . . . . Repair 11 | . . . . . . 1 . . . 3 5 1 1 . . . . Refit 1 | . . . . . . . . . . . . . . 1 . . . Recycling Unit Hacks . | . . . . . . . . . . . . . . . . . . Scanalyzer . | . . . . . . . . . . . . . . . . . . Garrison Access Hacks 15 | . . . . . . . . 1 . 3 3 5 3 . . . . Unlock Access 1 | . . . . . . . . 1 . . . . . . . . . Seal Access 12 | . . . . . . . . . . 2 3 4 3 . . . . Coupler Status 2 | . . . . . . . . . . 1 . 1 . . . . . Unauthorized Hacks 29 | . . . . . . 4 . 3 . 6 5 6 4 1 . . . Terminals 6 | . . . . . . . . 2 . 1 1 2 . . . . . Assimilate 2 | . . . . . . . . 1 . 1 . . . . . . . Botnet 1 | . . . . . . . . . . . 1 . . . . . . Operators 3 | . . . . . . . . 1 . . . 2 . . . . . Fabricators 22 | . . . . . . 3 . 1 . 5 4 4 4 1 . . . Prioritize 14 | . . . . . . . . 1 . 4 4 3 1 1 . . . Recompile 8 | . . . . . . 3 . . . 1 . 1 3 . . . . Repair Stations . | . . . . . . . . . . . . . . . . . . Recycling Units . | . . . . . . . . . . . . . . . . . . Scanalyzers . | . . . . . . . . . . . . . . . . . . Garrison Access 1 | . . . . . . 1 . . . . . . . . . . . Jam 1 | . . . . . . 1 . . . . . . . . . . . Data Cores Recovered 3 | . . . . . . . . 1 . 1 . 1 . . . . . Used 1 | . . . . . . . . . . 1 . . . . . . . Hacking Detections 54 | . 2 . . . 2 4 . 1 . 9 14 11 6 2 . 1 2 Full Trace Events 20 | . 2 . . . . 1 . 1 . 3 7 3 . 1 . 1 1 Feedback Events 1 | . . . . . . . . . . . 1 . . . . . . Hackware Fried 1 | . . . . . . . . . . . 1 . . . . . . Feedback Blocked . | . . . . . . . . . . . . . . . . . . Robot Schematics Acquired . | . . . . . . . . . . . . . . . . . . Robots Built . | . . . . . . . . . . . . . . . . . . Authchips . | . . . . . . . . . . . . . . . . . . Time . | . . . . . . . . . . . . . . . . . . Total Robot Build Rating . | . . . . . . . . . . . . . . . . . . Part Schematics Acquired 9 | . . . . . 1 . . . . 3 . 2 3 . . . . Parts Built 18 | . . . . . . 2 . 1 . 4 4 4 2 1 . . . Authchips 6 | . . . . . . 2 . . . 1 . 1 2 . . . . Time 681 | . . . . . . 72 . 18 . 111 108 101 195 76 . . . Total Part Build Rating 93 | . . . . . . 6 . 3 . 21 20 23 15 5 . . . Parts Repaired 11 | . . . . . . 1 . . . 3 5 1 1 . . . . Time 313 | . . . . . . 19 . . . 102 116 50 26 . . . . Parts Recycled . | . . . . . . . . . . . . . . . . . . Recycled Matter . | . . . . . . . . . . . . . . . . . . Retrieved Matter . | . . . . . . . . . . . . . . . . . . Retrieved Components . | . . . . . . . . . . . . . . . . . . Parts Scanalyzed . | . . . . . . . . . . . . . . . . . . Part Schematics Acquired . | . . . . . . . . . . . . . . . . . . Parts Damaged . | . . . . . . . . . . . . . . . . . . Bothacking | -11 -10 -10 -10 -9 -8 -7 -7 -7 -7 -7 -6 -5 -4 -3 -3 -2 -1 ------------ Run | Yrd Mat Min Exi Min Mat Fac Was Fac Gar Fac Fac Fac Fac Res Qua Res Acc Used RIF Installer 1 | . . . . . . . . . 1 . . . . . . . . Robots Hacked . | . . . . . . . . . . . . . . . . . . Non-combat . | . . . . . . . . . . . . . . . . . . Combat . | . . . . . . . . . . . . . . . . . . Robot Hacks Applied . | . . . . . . . . . . . . . . . . . . Relay Couplers Released . | . . . . . . . . . . . . . . . . . . Fabnet Peak Effective % . | . . . . . . . . . . . . . . . . . . Robots Rewired . | . . . . . . . . . . . . . . . . . . Allies Hacked . | . . . . . . . . . . . . . . . . . . Hacks Repelled . | . . . . . . . . . . . . . . . . . . Allies | -11 -10 -10 -10 -9 -8 -7 -7 -7 -7 -7 -6 -5 -4 -3 -3 -2 -1 -------- Run | Yrd Mat Min Exi Min Mat Fac Was Fac Gar Fac Fac Fac Fac Res Qua Res Acc Total Allies 7 | . . 5 . . . . . 1 . 1 . . . . . . . Largest Group 5 | . . 5 . . . . . 1 . . . . . . . . . Highest-Rated Group 83 | . . 83 . . . . . 26 . . . . . . . . . Highest-Rated Ally 31 | . . 31 . . . . . 26 . . . . . . . . . Total Orders 2 | . . . . . . . . 1 . 1 . . . . . . . STAY 2 | . . . . . . . . 1 . 1 . . . . . . . Ally Attacks 21 | . . 21 . . . . . . . . . . . . . . . Total Damage 239 | . . 239 . . . . . . . . . . . . . . . Kills 4 | . . 4 . . . . . . . . . . . . . . . Allies Corrupted . | . . . . . . . . . . . . . . . . . . Allies Melted . | . . . . . . . . . . . . . . . . . . Intel | -11 -10 -10 -10 -9 -8 -7 -7 -7 -7 -7 -6 -5 -4 -3 -3 -2 -1 ------- Run | Yrd Mat Min Exi Min Mat Fac Was Fac Gar Fac Fac Fac Fac Res Qua Res Acc Active Infowar (turns) 6284 | . . . . . . 662 66 143 169 882 1426 1182 979 473 . . 302 Terrain 293 | . . . . . . . . . . . . . . . . . 293 Structural 6105 | . . . . . . 662 66 143 169 882 1426 1182 979 473 . . 123 Robot Analysis Total . | . . . . . . . . . . . . . . . . . . Derelict Logs Recovered 1 | . . 1 . . . . . . . . . . . . . . . Drone Launches . | . . . . . . . . . . . . . . . . . . Drone Recoveries . | . . . . . . . . . . . . . . . . . . Exploration | -11 -10 -10 -10 -9 -8 -7 -7 -7 -7 -7 -6 -5 -4 -3 -3 -2 -1 ------------- Run | Yrd Mat Min Exi Min Mat Fac Was Fac Gar Fac Fac Fac Fac Res Qua Res Acc Turns Passed 7770 | 26 107 174 78 76 85 1115 66 143 169 942 1426 1183 1020 494 55 224 387 Spaces Moved 12591 | 39 195 385 207 193 188 1457 161 325 288 1516 2467 1959 1682 486 84 383 576 Core 1547 | 39 195 97 . . 62 804 . . . . . 2 . . . 293 55 Treads . | . . . . . . . . . . . . . . . . . . Legs . | . . . . . . . . . . . . . . . . . . Wheels . | . . . . . . . . . . . . . . . . . . Hover . | . . . . . . . . . . . . . . . . . . Flight 11044 | . . 288 207 193 126 653 161 325 288 1516 2467 1957 1682 486 84 90 521 Fastest Speed 32 | 50 50 37 37 37 35 32 32 32 32 32 40 40 40 37 45 45 45 Average Speed 39 | 50 50 40 37 38 42 45 32 32 32 32 40 40 40 37 45 48 45 Slowest Speed 200 | 50 50 50 37 40 50 100 32 32 32 35 40 200 40 45 45 50 50 Overloaded Moves . | . . . . . . . . . . . . . . . . . . Propulsion Burnouts . | . . . . . . . . . . . . . . . . . . Robots Hopped 73 | . . 10 . 8 4 2 . . . 12 13 4 9 1 1 3 6 Potential Cave-ins . | . . . . . . . . . . . . . . . . . . Cave-ins Triggered 3 | . . . . . . 1 . . . . 1 1 . . . . . Exploration Rate (%) 37 | 3 39 79 63 44 25 37 78 6 39 44 63 53 45 18 14 15 16 Regions Visited 17 Branch Regions 4 Pre-discovered Areas 1 | . . 1 . . . . . . . . . . . . . . . Known Exits Taken 7 | . 1 . . . . . . 1 . 1 1 1 1 . . 1 . Unknown Exits Taken 7 | 1 . 1 1 1 1 . . . . . . . . 1 1 . . Scrap Searched 2 | . . 1 . 1 . . . . . . . . . . . . . Spaces Dug 318 | . . . . . . 29 . 8 22 34 54 67 65 6 . 11 22 Terrain Destroyed 891 | . . . . . . 38 49 8 77 34 281 145 161 65 . 11 22 Melee 264 | . . . . . . 29 . 8 12 34 39 56 47 6 . 11 22 Projectile . | . . . . . . . . . . . . . . . . . . AOE 627 | . . . . . . 9 49 . 65 . 242 89 114 59 . . . Terrain Rammed . | . . . . . . . . . . . . . . . . . . Walls Destroyed . | . . . . . . . . . . . . . . . . . . Machines Disabled . | . . . . . . . . . . . . . . . . . . Actions | -11 -10 -10 -10 -9 -8 -7 -7 -7 -7 -7 -6 -5 -4 -3 -3 -2 -1 --------- Run | Yrd Mat Min Exi Min Mat Fac Was Fac Gar Fac Fac Fac Fac Res Qua Res Acc Total 14585 | 43 203 384 208 185 187 1828 168 347 322 1897 2763 2236 1918 765 99 399 633 Wait 1442 | . . . . . . 293 1 9 . 323 202 182 142 256 15 . 19 Move 12444 | 38 194 365 206 178 181 1454 160 325 286 1493 2442 1951 1666 483 82 376 564 Hop 59 | . . 9 . 6 2 1 . . . 10 11 3 6 1 1 3 6 Pick Up 35 | 1 1 . 1 1 . 4 . . 2 5 5 8 6 . . 1 . Fast Attach 50 | 2 . 2 . . 2 14 . 3 . 7 6 5 2 2 . 2 3 Attach 30 | . . 2 . . . 6 1 . 1 4 5 3 5 1 . 1 1 Detach 12 | 1 . . . . . 6 . . . 2 1 . . . . 1 1 Swap 7 | . . . . . . . . . . 3 . 1 2 1 . . . Drop 25 | . . . 1 . . 2 . . . 8 1 7 2 1 . 3 . Fire 76 | 1 . 4 . . . 10 6 . 8 . 25 5 11 6 . . . Melee 355 | . . . . . . 31 . 10 22 42 65 71 58 14 . 12 30 Ram 23 | . 8 2 . . 2 7 . . . . . . . . 1 . 3 Kick . | . . . . . . . . . . . . . . . . . . Crush . | . . . . . . . . . . . . . . . . . . Escape Stasis 27 | . . . . . . . . . 3 . . . 18 . . . 6 Rewire . | . . . . . . . . . . . . . . . . . . Trap . | . . . . . . . . . . . . . . . . . . Miscellaneous . | . . . . . . . . . . . . . . . . . . Route ------- -11/Scrapyard -10/Materials (discovered 2 exits: [*Mat] / *Min) -10/Mines (discovered 2 exits: [*Mat] / *Exi) -10/Exiles -9/Mines -8/Materials -7/Factory -7/Waste -7/Factory -7/Garrison -7/Factory (discovered 5 exits: *Fac x4 / [*Low]) -6/Factory (discovered 6 exits: *Fac x4 / [*Low x2]) -5/Factory (discovered 4 exits: *Fac x4) -4/Factory (discovered 4 exits: *Res x4) -3/Research -3/Quarantine -2/Research (discovered 5 exits: *Acc x3 / Tes x2) -1/Access (discovered 1 exit: Com) History --------- Turn | Location | Event 3 | -11/Scrapyard | Discovered new exit (range 15) 27 | -11/Scrapyard | Entered Materials 52 | -10/Materials | Discovered new exit (range 15) 101 | -10/Materials | Identified exit to Mines 134 | -10/Materials | Entered Mines 155 | -10/Mines | Assembled infested the area 163 | -10/Mines | Assisted by bots powering up and referring to "LRC-V3" 231 | -10/Mines | Learned location of Storage (-9) 236 | -10/Mines | Discovered new exit (range 8) 283 | -10/Mines | Found a damaged Exp. Sensor Array with a note attached 306 | -10/Mines | Deemed a non-threat by the Exiles lab entrance 307 | -10/Mines | Discovered new exit (range 5) 308 | -10/Mines | Entered Exiles 317 | -10/Exiles | Build established: Mutant 318 | -10/Exiles | Met 8R-AWN 324 | -10/Exiles | Met EX-HEX 334 | -10/Exiles | Met EX-BIN 338 | -10/Exiles | Aligned with FarCom system 338 | -10/Exiles | Given EX-Vault access code 348 | -10/Exiles | Opened EX-Vault 350 | -10/Exiles | Found Prototype Device 351 | -10/Exiles | Identified Skeleton Box 359 | -10/Exiles | Warned to stay clear of 0b10 Research branches 369 | -10/Exiles | Met EX-DEC 383 | -10/Exiles | Discovered new exit (range 10) 386 | -10/Exiles | Entered Mines 453 | -9/Mines | Found a Scrap Suit stashed away for nefarious purposes 456 | -9/Mines | Discovered new exit (range 10) 462 | -9/Mines | Entered Materials 462 | -8/Materials | Evolved 4 slots: Utility x4 528 | -8/Materials | Discovered new exit (range 16) 547 | -8/Materials | Entered Factory 547 | -7/Factory | Evolved 2 slots: Utility x2 558 | -7/Factory | Discovered new exit (range 15) 577 | -7/Factory | Lost 4 parts (2n2w) 789 | -7/Factory | Build established: Hacker-Mutant 968 | -7/Factory | Crushed by falling debris 1371 | -7/Factory | Build established: Hacker-Sprinter 1475 | -7/Factory | Fabricated Hacking Suite (x1) 1514 | -7/Factory | Fabricated Hacking Suite (x1) 1639 | -7/Factory | Repaired Cesium-ion Thruster 1662 | -7/Factory | Sucked down chute 1662 | -7/Factory | Entered Waste 1671 | -7/Waste | Spotted C-40 Crusher 1699 | -7/Waste | Spotted C-40 Crusher 1703 | -7/Waste | Spotted C-40 Crusher 1707 | -7/Waste | Spotted C-40 Crusher 1707 | -7/Waste | Spotted C-40 Crusher 1713 | -7/Waste | Discovered new exit (range 11) 1728 | -7/Waste | Entered Factory 1810 | -7/Factory | Fabricated Hacking Suite? 1871 | -7/Factory | Identified exit to Garrison 1871 | -7/Factory | Entered Garrison 1952 | -7/Garrison | Triggered checkpoint 1966 | -7/Garrison | Installed Relay Interface Framework 2006 | -7/Garrison | Core integrity fell below 50% 2024 | -7/Garrison | Assembled breached garrison interior 2031 | -7/Garrison | Build established: Wizard-Sprinter 2035 | -7/Garrison | Discovered new exit (range 12) 2040 | -7/Garrison | Entered Factory 2091 | -7/Factory | Repaired Cesium-ion Thruster 2130 | -7/Factory | Repaired Cesium-ion Thruster 2235 | -7/Factory | Repaired Structural Scanner 2392 | -7/Factory | Fabricated Imp. Hacking Suite (x1) 2474 | -7/Factory | Fabricated Lrn. Missile Launcher (x1) 2627 | -7/Factory | Fabricated Lrn. Missile Launcher? 2666 | -7/Factory | Discovered new exit (range 4) 2744 | -7/Factory | Discovered new exit (range 8) 2935 | -7/Factory | Fabricated Nuclear Pulse Array (x1) 2965 | -7/Factory | Identified exit to Factory 2982 | -7/Factory | Entered another Factory area 2982 | -6/Factory | Evolved 2 slots: Utility x2 3032 | -6/Factory | Repaired VTOL Module 3289 | -6/Factory | Build established: Wizard-Mutant 3335 | -6/Factory | Repaired Lrn. Missile Launcher 3365 | -6/Factory | Repaired Nuclear Pulse Array 3566 | -6/Factory | Fabricated Imp. Hacking Suite (x1) 3588 | -6/Factory | Crushed by falling debris 3601 | -6/Factory | Discovered new exit (range 11) 3611 | -6/Factory | Identified exit to Factory 3855 | -6/Factory | Repaired Nuclear Pulse Array 4108 | -6/Factory | Fabricated Imp. Hacking Suite? 4233 | -6/Factory | Repaired Lrn. Missile Launcher 4306 | -6/Factory | Fabricated Imp. Hacking Suite? 4328 | -6/Factory | Fabricated Imp. Hacking Suite (x1) 4355 | -6/Factory | Discovered new exit (range 15) 4380 | -6/Factory | Hacking Suite fried by hacking feedback 4408 | -6/Factory | Entered another Factory area 4408 | -5/Factory | Evolved 2 slots: Utility x2 4575 | -5/Factory | Discovered new exit (range 11) 4752 | -5/Factory | Fabricated Nuclear Pulse Array (x1) 4920 | -5/Factory | Discovered new exit (range 9) 5039 | -5/Factory | Fabricated Imp. Hacking Suite (x1) 5119 | -5/Factory | Repaired Lrn. Missile Launcher 5252 | -5/Factory | Crushed by falling debris 5515 | -5/Factory | Fabricated Adv. Hacking Suite? 5559 | -5/Factory | Fabricated Adv. Hacking Suite (x1) 5579 | -5/Factory | Identified exit to Factory 5591 | -5/Factory | Entered another Factory area 5591 | -4/Factory | Evolved 2 slots: Utility x2 5901 | -4/Factory | Fabricated Cld. Phase Cannon? 6355 | -4/Factory | Repaired Structural Scanner 6375 | -4/Factory | Fabricated Imp. Particle Accelerator? 6484 | -4/Factory | Discovered new exit (range 14) 6556 | -4/Factory | Identified exit to Research 6611 | -4/Factory | Entered Research 6611 | -3/Research | Evolved 2 slots: Propulsion x2 6687 | -3/Research | Spotted B-86 Titan 6812 | -3/Research | Fabricated Gui. EMP Blaster? 7102 | -3/Research | Discovered new exit (range 9) 7105 | -3/Research | Entered Quarantine 7106 | -3/Quarantine | Maximum security lockdown engaged 7135 | -3/Quarantine | Lost 8 parts (1p1n5u1w) 7158 | -3/Quarantine | Discovered new exit (range 3) 7160 | -3/Quarantine | Entered Research 7160 | -2/Research | Evolved 2 slots: Propulsion x2 7251 | -2/Research | Identified exit to Access 7251 | -2/Research | Identified exit to Testing 7328 | -2/Research | Spotted B-90 Cyclops 7384 | -2/Research | Entered Access 7384 | -1/Access | Evolved 2 slots: Utility x2 7392 | -1/Access | Identified exit to Command 7683 | -1/Access | Spotted B-99 Colossus 7694 | -1/Access | Build established: Wizard-Scout 7766 | -1/Access | Core integrity fell below 50% 7771 | -1/Access | Self-destructed Last Messages --------------- 6L. W-44 Eye distress signal alerts nearby ally. Hacking Suite destroyed. Terrain Scanner destroyed. Structural Scanner destroyed. Imp. Hacking Suite destroyed. P-80 Master resets R-10 Processor, system corruption cleaned. Imp. Hacking Suite destroyed. Impulse Thruster Array destroyed. Longscan Aggregator disabled. TF Node disabled. Adv. Sensor Array tumbles out of TF Node. Adv. Signal Interpreter tumbles out of TF Node. Imp. Hacking Suite destroyed. Terrain Scan Processor destroyed. P-80 Master resets S-43 Plague, system corruption cleaned. Slammed into S-43 Plague. Adv. Hacking Suite destroyed. Slammed into S-43 Plague. Hacking Suite destroyed. Map ----- +----------------------------------------------------+ | ???????# #???????????????????????????????????????? | | ?????### ###?????????????????????????????????????? | | ?????# #?????????????????????????????????????? | | ?????# #?????? ????????????????????????????? | | ?????+ #?????# ????????????????????????????? | | ?????# #?????# ????????????????????????????? | | ?????# #?????# ????????????????????????????? | | ?????## ##?????# #???????????????????????????? | | ??????# #??????# #???????????????????????????? | | ??????+ #??????# #???????????????????????????? | | ??????# #??????# #???????????????????????????? | | ??????# #??????# #???????????????????????????? | | ??????# #??????# #+#?????????????????????????? | | ??????# ######## #?????????????????????????? | | ??????# #?????????????????????????? | | ??????# Y #?????????????????????????? | | ??????# ^ #?#####???????????????????? | | ??????# "" ### #???????????????????? | | ??????# "" pp #???????????????????? | | ??????+ """""" ###### #???????????????????? | | ??????## """"" s#????##p##???????????????????? | | ???????# " #?????#%#????????????????????? | | ??????## "" #?????#%#????????????????????? | | ????### #######s####?????????????????? | | " ## sssp #?????????????????? | | !### ## @ #?????????????????? | | ?????##/######## ## #?????????????????? | | ?????? ??????# # #?????????????????? | | ????# ??????# ! ###########?????????????????? | | ????# ""??????# ! #???????????????????????????? | | ????# ""??????#! #???????????????????????????? | | ????# "???????# #???????????????????????????? | | ????+ ?????######+######????????????????????????? | | ????# ??????# #????????????????????????? | | ????#???????# #????????????????????????? | | ????????????# #????????????????????????? | | ????????????# #????????????????????????? | | ????????????# #????????????????????????? | | ????????????# #????????????????????????? | | ????????????#= [#????????????????????????? | | ????????????#############????????????????????????? | | ?????????????????????????????????????????????????? | | ?????????????????????????????????????????????????? | | ?????????????????????????????????????????????????? | | ?????????????????????????????????????????????????? | | ?????????????????????????????????????????????????? | | ?????????????????????????????????????????????????? | | ?????????????????????????????????????????????????? | | ?????????????????????????????????????????????????? | | ?????????????????????????????????????????????????? | +----------------------------------------------------+ Best States ------------- Heat Dissipation 52 Energy Generation 21 Energy Capacity 170 Matter Stores 300 Matter Capacity 300 Sight Range 16 Terrain Scan Range 14 Terrain Scan Density 85 Resistance: KI 20 Resistance: TH 20 Resistance: EX 20 Resistance: EM 20 Resistance: I 20 Resistance: S 20 Resistance: P 20 Evasion (%) 63 Offensive Hacking 162 Defensive Hacking 20 Authchip Count 3 Item Schematics ----------------- Hacking Suite | -8/Materials | Hacked Imp. Hacking Suite | -7/Factory | Hacked Lrn. Missile Launcher | -7/Factory | Hacked Nuclear Pulse Array | -7/Factory | Hacked Gui. EMP Blaster | -5/Factory | Hacked Adv. Hacking Suite | -5/Factory | Hacked Cld. Phase Cannon | -4/Factory | Hacked Particle Accelerator | -4/Factory | Hacked Imp. Particle Accelerator | -4/Factory | Hacked Robot Schematics ------------------ None Fabricated ------------ Hacking Suite | x1 | -7/Factory | Authchip Hacking Suite | x1 | -7/Factory | Authchip Hacking Suite | x1 | -7/Factory Imp. Hacking Suite | x1 | -7/Factory Lrn. Missile Launcher | x1 | -7/Factory Lrn. Missile Launcher | x1 | -7/Factory Nuclear Pulse Array | x1 | -7/Factory | Authchip Imp. Hacking Suite | x1 | -6/Factory Imp. Hacking Suite | x1 | -6/Factory Imp. Hacking Suite | x1 | -6/Factory Imp. Hacking Suite | x1 | -6/Factory Nuclear Pulse Array | x1 | -5/Factory Imp. Hacking Suite | x1 | -5/Factory Adv. Hacking Suite | x1 | -5/Factory | Authchip Adv. Hacking Suite | x1 | -5/Factory Cld. Phase Cannon | x1 | -4/Factory | Authchip Imp. Particle Accelerator | x1 | -4/Factory | Authchip Gui. EMP Blaster | x1 | -3/Research Repaired ---------- Cesium-ion Thruster | 68% | -7/Factory Cesium-ion Thruster | 56% | -7/Factory Cesium-ion Thruster | 56% | -7/Factory Structural Scanner | 50% | -7/Factory VTOL Module | 32% | -6/Factory Lrn. Missile Launcher | 73% | -6/Factory Nuclear Pulse Array | 79% | -6/Factory Nuclear Pulse Array | 40% | -6/Factory Lrn. Missile Launcher | 64% | -6/Factory Lrn. Missile Launcher | 83% | -5/Factory Structural Scanner | 35% | -4/Factory Alien Tech Used ----------------- None Achievements -------------- None Challenges ------------ None Game ------ Seed PoweredScanDeflector Manual? 0 Play Time 01:43:58 Cumulative 178.8 hours Start 2025.05.20 @ 21:51:13 End 2025.05.21 @ 00:22:20 Sessions 7 Manual Loads 0 Difficulty Adventurer Special Mode None Game No. 179 Rogue 18 Adventurer 150 Explorer 11 Win Type - Total 44 Types 12/0/13/2/7/0/4/1/0/5 Lore% 47 Gallery% 46 Achievement% 67 Wizard Run 0 Options --------- Layout 0 ASCII 0 Keyboard 0 Movement Numpad Keybinds 0 Fullscreen 2 Font 12/Smallcaps Map View 83x54 Zoom Use 0% Tactical HUD 0 Map Filters NONE Filters NONE Steam X RUN: 5f349f40-d734-4832-ab38-d1aaa412bd04